fUSD/lending_fUSD_20250807
["ID","MTS","AMOUNT","RATE_DAILY","PERIOD"]
[377827227,1754568642866,-227.51999998,0.0001998,2]
[377827231,1754568642878,-55.18216555,0.0001998,2]
[377827234,1754568642888,-897.52,0.0001998,2]
[377827237,1754568642898,-188.64553956,0.0001998,2]
[377827240,1754568642911,-400.0,0.0001998,2]
[377827243,1754568642921,-2790.58,0.0001998,2]
[377827247,1754568642932,-400.0,0.0001998,2]
[377827250,1754568642942,-1109.41,0.0001998,2]
[377827253,1754568642952,-400.0,0.0001998,2]
[377827257,1754568642961,-408.74,0.0001998,2]
[377827259,1754568642971,-400.0,0.0001998,2]
[377827261,1754568642981,-201.91296217,0.0001998,2]
[377827504,1754568645416,-198.08703783,0.0001998,2]
[377827506,1754568645426,-1611.75,0.0001998,2]
[377827508,1754568645437,-400.0,0.0001998,2]
[377827510,1754568645453,-501.51,0.0001998,2]
[377827512,1754568645462,-527.86,0.0001998,2]
[377827514,1754568645471,-1498.26,0.0001998,2]
[377827516,1754568645480,-400.0,0.0001998,2]
[377827518,1754568645489,-866.87,0.0001998,2]
[377827520,1754568645498,-430.22,0.0001998,2]
[377827522,1754568645507,-400.0,0.0001998,2]
[377827524,1754568645516,-1259.57,0.0001998,2]
[377827526,1754568645525,-1172.05,0.0001998,2]
[377827542,1754568645638,-400.0,0.0001998,2]
[377827547,1754568645703,-425.73,0.0001998,2]
[377827549,1754568645716,-400.0,0.0001998,2]
[377827551,1754568645726,-400.0,0.0001998,2]
[377827553,1754568645736,-400.0,0.0001998,2]
[377827555,1754568645745,-397.61645617,0.0001998,2]
[377827570,1754568645908,-128.53354383,0.0001998,2]
[377827572,1754568645918,-400.0,0.0001998,2]
[377827574,1754568645928,-400.0,0.0001998,2]
[377827576,1754568645938,-420.67,0.0001998,2]
[377827578,1754568645947,-400.0,0.0001998,2]
[377827580,1754568645956,-751.19,0.0001998,2]
[377827582,1754568645965,-400.0,0.0001998,2]
[377827584,1754568645974,-400.0,0.0001998,2]
[377827586,1754568645983,-545.95997617,0.0001998,2]
[377827588,1754568645995,-365.72002383,0.0001998,2]
[377827590,1754568646004,-400.0,0.0001998,2]
[377827592,1754568646013,-659.11,0.0001998,2]
[377827594,1754568646024,-400.0,0.0001998,2]
[377827596,1754568646034,-623.59,0.0001998,2]
[377827598,1754568646043,-152.27997637,0.0001998,2]
[377828628,1754568699860,600.0,0.0003013,120]
[377828644,1754568768636,168.74792975,0.0003013,120]
[377828645,1754568771968,213.67,0.00013699,2]
[377828648,1754568781226,551.9,0.00030136,120]
[377828662,1754568835799,150.0,0.00017866,2]
[377828684,1754568916837,476.07,0.00015068,2]
[377828685,1754568917857,476.07,0.00016709,2]
[377828725,1754569083521,370.02916877,0.0003,120]
[377828741,1754569128525,246.68611251,0.0003,120]
[377828762,1754569167798,170.0,0.00018,2]
[377828764,1754569173514,164.45740834,0.0003,120]
[377828793,1754569218456,164.45740834,0.0003,120]
[377828824,1754569263560,1202.0,0.00030137,120]
[377828878,1754569381292,399.0,0.00030136,120]
[377828997,1754569507836,164.45740835,0.0003,120]
[377829089,1754569581029,175.0,0.00018734,7]
[377829123,1754569637958,525.0,0.00017925,2]
[377829124,1754569638821,150.0,0.000178,2]
[377829224,1754569787168,202.98,0.00013699,2]
[377829292,1754569831930,-476.07,0.00018349,2]
[377829294,1754569831941,-5339.19,0.00018689,2]
[377829296,1754569831950,-1000.0,0.00018734,2]
[377829298,1754569831960,-163.43,0.00018734,2]
[377829300,1754569831970,-250.0,0.00018913,2]
[377829302,1754569831979,-150.0,0.0001898,2]
[377829303,1754569831988,-277.35679052,0.00018986,2]
[377829305,1754569831998,-300.0,0.00018999,2]
[377829306,1754569832007,-1200.0,0.00018999,2]
[377829308,1754569832017,-1502.74905396,0.00019,2]
[377829310,1754569832026,-1181.96372504,0.00019,2]
[377829355,1754569837632,-451.7484,0.00019,2]
[377829356,1754569837643,-878.05885671,0.00019,2]
[377829358,1754569838112,-1206.5,0.00019,2]
[377829359,1754569838124,-3841.7,0.00019,2]
[377829361,1754569838145,-378.36330588,0.00019,2]
[377829366,1754569838181,-769.34458208,0.00019,2]
[377829532,1754569839816,-5351.854605,0.00019,2]
[377829544,1754569839930,-251.859,0.00019,2]
[377830170,1754569845909,-2463.0203389,0.00019,2]
[377830177,1754569845965,-2078.63092899,0.00019,2]
[377831883,1754569875736,519.0,0.00017925,2]
[377831899,1754569907585,442.02,0.00015068,2]
[377831900,1754569907800,442.02,0.00016701,2]
[377832069,1754570229674,507.0,0.000301,120]
[377832153,1754570703085,150.0,0.000177,2]
[377832165,1754570829710,201.03,0.00013699,2]
[377832177,1754570887381,1000.0,0.00018398,4]
[377832179,1754570928912,409.15,0.00015068,2]
[377832180,1754570929168,409.15,0.00016686,2]
[377832181,1754570934178,814.0,0.00030136,120]
[377832192,1754571030123,150.5,0.0002609,120]
[377832193,1754571031457,150.5,0.0002608,120]
[377832200,1754571031826,-415.80500019,0.00018133,2]
[377832201,1754571031883,-109.19499981,0.00018133,2]
[377832202,1754571031893,-393.29080384,0.00018303,2]
[377832203,1754571031932,150.5,0.0002607,120]
[377832204,1754571031952,-15.85919616,0.00018303,2]
[377832205,1754571031963,-300.0,0.00018398,2]
[377832206,1754571031973,-2085.85,0.00018472,2]
[377832207,1754571031983,-176.93866398,0.000185,2]
[377832208,1754571031993,-542.78,0.00018503,2]
[377832209,1754571032002,-154.95733511,0.00018523,2]
[377832210,1754571032012,-1000.0,0.00018532,2]
[377832211,1754571032022,-163.43,0.00018562,2]
[377832212,1754571032032,-695.76944,0.0001881,2]
[377832213,1754571032042,-361.56711525,0.0001881,2]
[377832214,1754571032052,-749.2133598,0.00018814,2]
[377832215,1754571032062,-1200.0,0.0001886,2]
[377832216,1754571032076,-171.34,0.00018861,2]
[377832217,1754571032086,-150.0,0.0001888,2]
[377832218,1754571032096,-171.34,0.00018893,2]
[377832219,1754571032106,-171.34,0.00018924,2]
[377832220,1754571032116,-171.34,0.00018956,2]
[377832221,1754571032125,-3362.27488969,0.00018986,2]
[377832222,1754571032150,-1133.8801845,0.00018986,2]
[377832223,1754571032160,-277.35679052,0.00018986,2]
[377832225,1754571032170,-171.34,0.00018987,2]
[377832226,1754571032179,-210.96268956,0.00018989,2]
[377832228,1754571032188,-160.0,0.00018989,2]
[377832230,1754571032197,-416.03518578,0.00018989,2]
[377832232,1754571032207,-250.0,0.00018989,2]
[377832234,1754571032216,-350.0,0.00018989,2]
[377832236,1754571032225,-200.0,0.00018989,2]
[377832238,1754571032235,-233.83638686,0.00018989,2]
[377832240,1754571032245,-500.0,0.00018989,2]
[377832242,1754571032253,-500.0,0.00018989,2]
[377832244,1754571032263,-584.67693245,0.00018989,2]
[377832247,1754571032273,-691.41111222,0.00019,2]
[377832251,1754571032298,-3972.16478268,0.00019,2]
[377832253,1754571032308,-1214.0,0.00019,2]
[377832255,1754571032320,-1214.0,0.00019,2]
[377832257,1754571032329,-905.60878,0.00019,2]
[377832259,1754571032339,-160.05,0.00019001,2]
[377832261,1754571032349,-171.34,0.00019019,2]
[377832263,1754571032358,-4662.51281194,0.00019041,2]
[377832264,1754571032367,-160.05,0.00019049,2]
[377832267,1754571032377,-171.34,0.0001905,2]
[377832268,1754571032387,-160.05,0.00019096,2]
[377832271,1754571032396,-2730.85448861,0.00019096,2]
[377832274,1754571032405,-160.05,0.00019144,2]
[377832277,1754571032414,-600.0,0.00019144,2]
[377832280,1754571032423,-171.27,0.00019144,2]
[377832283,1754571032433,-174.85,0.00019178,2]
[377832285,1754571032442,-160.05,0.00019191,2]
[377832287,1754571032452,-235.0,0.00019452,2]
[377832289,1754571032462,-500.0,0.00019479,2]
[377832291,1754571032471,-2959.0,0.00019533,2]
[377832293,1754571032480,-150.0,0.00019565,2]
[377832295,1754571032490,-200.0,0.000196,7]
[377832297,1754571032500,-167.78,0.00019611,2]
[377832299,1754571032509,-654.05,0.00019676,2]
[377832301,1754571032519,-654.0,0.00019677,2]
[377832303,1754571032528,-327.0,0.00019678,2]
[377832305,1754571032537,-654.0,0.00019679,2]
[377832307,1754571032547,-500.0,0.000197,7]
[377832309,1754571032557,-2959.0,0.00019751,2]
[377832311,1754571032568,-800.0,0.000198,7]
[377832313,1754571032581,-695.76945,0.0001981,2]
[377832315,1754571032589,-300.0,0.00019821,2]
[377832317,1754571032598,-1000.0,0.00019876,2]
[377832319,1754571032607,-173.13621835,0.00019876,2]
[377832321,1754571032616,-4153.73149336,0.00019876,2]
[377832323,1754571032627,-4225.20056584,0.00019876,2]
[377832324,1754571032636,-412.09964442,0.00019876,2]
[377832326,1754571032662,-61268.54884176,0.00019877,2]
[377832565,1754571037947,-38557.09545824,0.00019877,2]
[377832566,1754571037957,-5000.0,0.00019877,2]
[377832567,1754571037966,-164.30001578,0.00019877,2]
[377832568,1754571037975,-180.95362185,0.00019877,2]
[377832569,1754571037985,-180.95362185,0.00019878,2]
[377832570,1754571037994,-180.95362185,0.00019879,2]
[377832571,1754571038004,-205.63142586,0.0001988,2]
[377832572,1754571038013,-1000.0,0.00019885,2]
[377832573,1754571038023,-163.806,0.00019885,2]
[377832574,1754571038032,-809.0,0.00019895,2]
[377832575,1754571038041,-3361.0,0.00019895,2]
[377832576,1754571038051,-1251.0,0.00019895,2]
[377832577,1754571038060,-956.0,0.00019895,2]
[377832578,1754571038070,-959.0,0.00019895,2]
[377832579,1754571038079,-564.0,0.00019895,2]
[377832580,1754571038088,-2025.0,0.00019895,2]
[377832581,1754571038097,-597.0,0.00019895,2]
[377832583,1754571038106,-1294.0,0.00019895,2]
[377832585,1754571038116,-1181.195,0.00019895,2]
[377832587,1754571038125,-3170.237,0.00019895,2]
[377832589,1754571038134,-1652.0,0.00019895,2]
[377832591,1754571038143,-8578.658,0.00019895,2]
[377832593,1754571038152,-4135.0,0.00019895,2]
[377832595,1754571038161,-3666.074,0.00019895,2]
[377832597,1754571038171,-150.0,0.00019895,2]
[377832599,1754571038180,-500.0,0.00019895,2]
[377832601,1754571038190,-378.61809305,0.00019899,2]
[377832603,1754571038200,-500.0,0.00019899,2]
[377832605,1754571038209,-196.08639188,0.00019899,2]
[377832607,1754571038218,-166.18280869,0.00019899,2]
[377832609,1754571038227,-500.0,0.00019899,2]
[377832611,1754571038237,-500.0,0.00019899,2]
[377832613,1754571038247,-500.0,0.00019899,2]
[377832615,1754571038256,-500.0,0.00019899,2]
[377832617,1754571038266,-500.0,0.00019899,2]
[377832619,1754571038276,-500.0,0.00019899,2]
[377832621,1754571038285,-500.0,0.00019899,2]
[377832623,1754571038294,-500.0,0.00019899,2]
[377832625,1754571038303,-500.0,0.00019899,2]
[377832627,1754571038314,-500.0,0.00019899,2]
[377832629,1754571038324,-500.0,0.00019899,2]
[377832631,1754571038334,-500.0,0.00019899,2]
[377832633,1754571038343,-500.0,0.00019899,2]
[377832635,1754571038352,-500.0,0.00019899,2]
[377832637,1754571038361,-500.0,0.00019899,2]
[377832639,1754571038371,-500.0,0.00019899,2]
[377832641,1754571038379,-500.0,0.00019899,2]
[377832643,1754571038389,-500.0,0.00019899,2]
[377832645,1754571038398,-500.0,0.00019899,2]
[377832647,1754571038408,-500.0,0.00019899,2]
[377832649,1754571038417,-500.0,0.00019899,2]
[377832651,1754571038426,-500.0,0.00019899,2]
[377832652,1754571038435,-500.0,0.00019899,2]
[377832654,1754571038444,-500.0,0.00019899,2]
[377832656,1754571038453,-500.0,0.00019899,2]
[377832659,1754571038462,-500.0,0.00019899,2]
[377832661,1754571038472,-500.0,0.00019899,2]
[377832662,1754571038482,-500.0,0.00019899,2]
[377832665,1754571038491,-500.0,0.00019899,2]
[377832666,1754571038500,-342.84267722,0.00019899,2]
[377832669,1754571038510,-500.0,0.00019899,2]
[377832670,1754571038519,-500.0,0.00019899,2]
[377832673,1754571038529,-500.0,0.00019899,2]
[377832674,1754571038538,-500.0,0.00019899,2]
[377832677,1754571038547,-500.0,0.00019899,2]
[377832678,1754571038557,-500.0,0.00019899,2]
[377832680,1754571038566,-200.0,0.00019899,2]
[377832682,1754571038578,-500.0,0.00019899,2]
[377832684,1754571038589,-500.0,0.00019899,2]
[377832687,1754571038598,-500.0,0.00019899,2]
[377832689,1754571038607,-500.0,0.00019899,2]
[377832690,1754571038616,-500.0,0.00019899,2]
[377832692,1754571038626,-1100.0,0.000199,7]
[377832694,1754571038635,-409.15,0.0001992,2]
[377832696,1754571038643,-151.0,0.00019938,2]
[377832698,1754571038654,-250.32,0.00019962,2]
[377832700,1754571038663,-250.32,0.00019966,2]
[377832702,1754571038673,-4225.20056578,0.00019967,2]
[377832704,1754571038683,-4153.73149329,0.00019967,2]
[377832706,1754571038693,-157.67597385,0.00019968,2]
[377832708,1754571038703,-606.3391762,0.00019972,2]
[377832710,1754571038713,-14866.81975445,0.00019972,2]
[377832797,1754571039638,-476.83390406,0.00019972,2]
[377832873,1754571040258,-337.5724228,0.00019895,2]
[377832877,1754571040290,-527.4275772,0.00019895,2]
[377832879,1754571040300,-53.8724228,0.00019972,2]
[377832882,1754571040323,-493.76506422,0.00019972,2]
[377832885,1754571040334,-372.34049029,0.00019972,2]
[377833132,1754571042877,-21846.06223208,0.00019972,2]
[377833134,1754571042887,-69321.4034999,0.00019972,2]
[377833136,1754571042896,-8743.6629947,0.00019972,2]
[377833138,1754571042906,-47877.9561694,0.00019972,2]
[377833139,1754571042915,-500.0,0.00019973,2]
[377833142,1754571042925,-500.0,0.00019973,2]
[377833144,1754571042935,-500.0,0.00019973,2]
[377833146,1754571042944,-170.2206052,0.00019973,2]
[377833147,1754571042955,-500.0,0.00019973,2]
[377833149,1754571042964,-510.94443415,0.00019973,2]
[377833152,1754571042976,-500.0,0.00019973,2]
[377833154,1754571042986,-500.0,0.00019973,2]
[377833156,1754571042996,-500.0,0.00019973,2]
[377833158,1754571043007,-500.0,0.00019973,2]
[377833160,1754571043016,-500.0,0.00019973,2]
[377833162,1754571043027,-1202.57549176,0.00019975,5]
[377833164,1754571043037,-2894.28,0.00019975,2]
[377833166,1754571043048,-400.0,0.00019975,2]
[377833168,1754571043058,-2306.27,0.00019975,2]
[377833170,1754571043068,-400.0,0.00019975,2]
[377833172,1754571043081,-2520.62,0.00019975,2]
[377833174,1754571043091,-1494.18,0.00019975,2]
[377833176,1754571043101,-1898.66,0.00019975,2]
[377833178,1754571043110,-400.0,0.00019975,2]
[377833228,1754571043559,-400.0,0.00019975,2]
[377833231,1754571043569,-2456.06,0.00019975,2]
[377833233,1754571043582,-4089.62,0.00019975,2]
[377833235,1754571043593,-635.36,0.00019975,2]
[377833237,1754571043602,-400.0,0.00019975,2]
[377833239,1754571043611,-400.0,0.00019975,2]
[377833241,1754571043622,-400.0,0.00019975,2]
[377833243,1754571043631,-904.1,0.00019975,2]
[377833245,1754571043640,-247.99774313,0.00019975,2]
[377833247,1754571043650,-1257.9,0.00019975,2]
[377833249,1754571043661,-993.12,0.00019975,2]
[377833251,1754571043670,-400.0,0.00019975,2]
[377833253,1754571043680,-3505.82,0.00019975,2]
[377833254,1754571043689,-921.36,0.00019975,2]
[377833256,1754571043698,-400.0,0.00019976,2]
[377833259,1754571043708,-404.86244873,0.00019976,2]
[377833261,1754571043718,-400.0,0.00019976,2]
[377833262,1754571043727,-400.0,0.00019976,2]
[377833264,1754571043738,-524.42367307,0.00019976,2]
[377833266,1754571043747,-400.0,0.00019976,2]
[377833268,1754571043756,-400.0,0.00019976,2]
[377833270,1754571043766,-585.78,0.00019976,2]
[377833272,1754571043775,-400.0,0.00019976,2]
[377833274,1754571043784,-803.36,0.00019976,2]
[377833276,1754571043793,-400.0,0.00019976,2]
[377833279,1754571043802,-400.0,0.00019976,2]
[377833282,1754571043812,-400.0,0.00019976,2]
[377833284,1754571043821,-404.04,0.00019976,2]
[377833286,1754571043832,-402.32052689,0.00019976,2]
[377833288,1754571043841,-1662.88,0.00019976,2]
[377833290,1754571043851,-400.0,0.00019976,2]
[377833292,1754571043860,-400.0,0.00019976,2]
[377833294,1754571043870,-400.0,0.00019976,2]
[377833296,1754571043882,-585.02,0.00019976,2]
[377833298,1754571043892,-400.0,0.00019976,2]
[377833300,1754571043902,-708.86,0.00019976,2]
[377833302,1754571043919,-400.0,0.00019976,2]
[377833304,1754571043933,-400.0,0.00019976,2]
[377833306,1754571043942,-400.0,0.00019976,2]
[377833308,1754571043951,-1734.44,0.00019976,2]
[377833310,1754571043960,-402.26523359,0.00019976,2]
[377833312,1754571043971,-400.0,0.00019976,2]
[377833314,1754571043980,-400.0,0.00019976,2]
[377833316,1754571043989,-400.0,0.00019976,2]
[377833318,1754571043998,-751.98908398,0.00019976,2]
[377833321,1754571044011,-6.93091602,0.00019976,2]
[377833323,1754571044020,-267.08175068,0.00019976,2]
[377833326,1754571044040,-858.48824932,0.00019976,2]
[377833328,1754571044049,-400.0,0.00019976,2]
[377833330,1754571044059,-400.0,0.00019976,2]
[377833332,1754571044068,-860.12,0.00019976,2]
[377833334,1754571044078,-1435.84,0.00019976,2]
[377833336,1754571044087,-400.0,0.00019976,2]
[377833338,1754571044096,-401.56380502,0.00019976,2]
[377833340,1754571044106,-401.88111616,0.00019976,2]
[377833342,1754571044115,-1277.92,0.00019976,2]
[377833344,1754571044124,-400.0,0.00019976,2]
[377833346,1754571044134,-516.54,0.00019976,2]
[377833348,1754571044143,-425.75,0.00019976,2]
[377833349,1754571044153,-924.23,0.00019976,2]
[377833350,1754571044162,-400.0,0.00019976,2]
[377833351,1754571044171,-400.0,0.00019976,2]
[377833352,1754571044181,-400.0,0.00019976,2]
[377833353,1754571044190,-523.66,0.00019976,2]
[377833354,1754571044199,-447.77347617,0.00019976,2]
[377833355,1754571044208,-400.0,0.00019976,2]
[377833356,1754571044216,-1455.51,0.00019976,2]
[377833357,1754571044225,-400.0,0.00019976,2]
[377833358,1754571044235,-1242.11,0.00019976,2]
[377833359,1754571044244,-220.60537096,0.00019976,2]
[377833360,1754571044254,-1495.77,0.00019976,2]
[377833361,1754571044263,-837.29,0.00019976,2]
[377833363,1754571044272,-1301.64,0.00019976,2]
[377833365,1754571044281,-400.0,0.00019976,2]
[377833367,1754571044291,-992.04,0.00019976,2]
[377833369,1754571044300,-400.0,0.00019976,2]
[377833371,1754571044309,-400.0,0.00019976,2]
[377833373,1754571044320,-400.0,0.00019976,2]
[377833375,1754571044330,-531.45123578,0.00019976,2]
[377833379,1754571044362,-1091.14876422,0.00019976,2]
[377833381,1754571044371,-400.0,0.00019976,2]
[377833383,1754571044381,-1501.85,0.00019976,2]
[377833385,1754571044390,-414.36556741,0.00019976,2]
[377833546,1754571045977,-400.0,0.00019975,2]
[377833548,1754571045987,-197.53359285,0.00019976,2]
[377833560,1754571046088,-455.23083974,0.00019976,2]
[377833562,1754571046098,-400.0,0.00019976,2]
[377833564,1754571046108,-400.0,0.00019976,2]
[377833566,1754571046117,-404.50383232,0.00019976,2]
[377833568,1754571046127,-400.0,0.00019976,2]
[377833570,1754571046136,-400.0,0.00019976,2]
[377833572,1754571046145,-400.0,0.00019976,2]
[377833574,1754571046157,-2159.52,0.00019976,2]
[377833576,1754571046167,-400.0,0.00019976,2]
[377833578,1754571046176,-400.0,0.00019976,2]
[377833580,1754571046185,-2016.03,0.00019976,2]
[377833582,1754571046195,-1827.56,0.00019976,2]
[377833584,1754571046204,-400.0,0.00019976,2]
[377833586,1754571046214,-1361.26,0.00019976,2]
[377833597,1754571046311,-400.0,0.00019976,2]
[377833599,1754571046321,-400.0,0.00019976,2]
[377833601,1754571046331,-1753.51,0.00019976,2]
[377833603,1754571046341,-400.0,0.00019976,2]
[377833605,1754571046350,-400.0,0.00019976,2]
[377833607,1754571046359,-1359.63,0.00019976,2]
[377833609,1754571046368,-400.0,0.00019976,2]
[377833611,1754571046377,-2139.9,0.00019976,2]
[377833613,1754571046387,-400.0,0.00019976,2]
[377833614,1754571046395,-400.0,0.00019976,2]
[377833615,1754571046405,-400.0,0.00019976,2]
[377833616,1754571046414,-400.0,0.00019976,2]
[377833617,1754571046423,-1617.2,0.00019976,2]
[377833618,1754571046432,-1091.8,0.00019976,2]
[377833619,1754571046441,-400.0,0.00019976,2]
[377833620,1754571046451,-400.0,0.00019976,2]
[377833621,1754571046459,-400.0,0.00019976,2]
[377833622,1754571046468,-406.82,0.00019976,2]
[377833623,1754571046478,-936.8,0.00019976,2]
[377833624,1754571046487,-1410.05,0.00019976,2]
[377833626,1754571046496,-400.0,0.00019976,2]
[377833628,1754571046505,-316.26432106,0.00019976,2]
[377833630,1754571046514,-400.0,0.00019976,2]
[377833632,1754571046523,-400.0,0.00019976,2]
[377833634,1754571046533,-400.0,0.00019976,2]
[377833636,1754571046543,-400.0,0.00019976,2]
[377833637,1754571046552,-940.74,0.00019976,2]
[377833640,1754571046563,-400.0,0.00019976,2]
[377833641,1754571046572,-1534.87,0.00019976,2]
[377833644,1754571046585,-976.36,0.00019976,2]
[377833646,1754571046595,-2008.85,0.00019976,2]
[377833648,1754571046604,-400.0,0.00019976,2]
[377833650,1754571046614,-1199.95,0.00019976,2]
[377833652,1754571046625,-565.48,0.00019976,2]
[377833654,1754571046634,-400.0,0.00019976,2]
[377833655,1754571046643,-400.0,0.00019976,2]
[377833657,1754571046653,-500.0,0.00019976,2]
[377833659,1754571046662,-500.0,0.00019976,2]
[377833661,1754571046672,-400.0,0.00019976,2]
[377833663,1754571046682,-1274.96,0.00019976,2]
[377833665,1754571046691,-1911.44,0.00019976,2]
[377833667,1754571046701,-400.0,0.00019976,2]
[377833669,1754571046711,-555.34,0.00019976,2]
[377833671,1754571046720,-400.0,0.00019976,2]
[377833673,1754571046729,-451.41,0.00019976,2]
[377833675,1754571046740,-400.0,0.00019976,2]
[377833677,1754571046749,-517.25,0.00019976,2]
[377833679,1754571046758,-400.0,0.00019976,2]
[377833681,1754571046767,-1697.91,0.00019976,2]
[377833683,1754571046777,-836.76,0.00019976,2]
[377833685,1754571046786,-975.31,0.00019976,2]
[377833687,1754571046796,-400.0,0.00019976,2]
[377833689,1754571046804,-404.4322925,0.00019976,2]
[377833691,1754571046814,-400.0,0.00019976,2]
[377833693,1754571046823,-400.0,0.00019976,2]
[377833695,1754571046834,-367.26016629,0.00019976,2]
[377833697,1754571046843,-448.22813729,0.00019976,2]
[377833699,1754571046852,-472.44815604,0.00019976,2]
[377833701,1754571046861,-1541.45,0.00019976,2]
[377833703,1754571046870,-400.0,0.00019976,2]
[377833705,1754571046880,-400.0,0.00019976,2]
[377833707,1754571046889,-400.0,0.00019976,2]
[377833709,1754571046898,-1813.42,0.00019976,2]
[377833711,1754571046907,-400.0,0.00019976,2]
[377833712,1754571046916,-1628.05,0.00019976,2]
[377833715,1754571046925,-516.79,0.00019976,2]
[377833716,1754571046935,-400.0,0.00019976,2]
[377833718,1754571046944,-2932.47,0.00019976,2]
[377833721,1754571046954,-403.82804969,0.00019976,2]
[377833723,1754571046963,-876.81,0.00019976,2]
[377833725,1754571046973,-400.0,0.00019976,2]
[377833727,1754571046982,-435.7,0.00019976,2]
[377833728,1754571046991,-400.0,0.00019976,2]
[377833731,1754571047001,-1364.3,0.00019976,2]
[377833733,1754571047011,-467.95,0.00019976,2]
[377833734,1754571047020,-400.0,0.00019976,2]
[377833736,1754571047029,-400.0,0.00019976,2]
[377833738,1754571047039,-400.0,0.00019976,2]
[377833740,1754571047048,-1888.7,0.00019976,2]
[377833742,1754571047057,-1359.98,0.00019976,2]
[377833744,1754571047067,-2054.88,0.00019976,2]
[377833746,1754571047076,-400.0,0.00019976,2]
[377833748,1754571047086,-1123.21,0.00019976,2]
[377833750,1754571047095,-1759.53,0.00019976,2]
[377833752,1754571047104,-425.03,0.00019976,2]
[377833754,1754571047113,-400.0,0.00019976,2]
[377833756,1754571047123,-758.39,0.00019976,2]
[377833758,1754571047132,-400.0,0.00019976,2]
[377833760,1754571047141,-400.0,0.00019976,2]
[377833762,1754571047151,-1736.99,0.00019976,2]
[377833764,1754571047161,-400.0,0.00019976,2]
[377833766,1754571047172,-400.0,0.00019976,2]
[377833768,1754571047181,-400.0,0.00019976,2]
[377833770,1754571047190,-400.0,0.00019976,2]
[377833772,1754571047200,-400.0,0.00019976,2]
[377833774,1754571047209,-400.0,0.00019976,2]
[377833776,1754571047219,-538.87,0.00019976,2]
[377833778,1754571047229,-400.0,0.00019976,2]
[377833780,1754571047238,-400.0,0.00019976,2]
[377833782,1754571047248,-546.58,0.00019976,2]
[377833784,1754571047257,-400.0,0.00019976,2]
[377833786,1754571047266,-400.0,0.00019976,2]
[377833788,1754571047276,-400.0,0.00019976,2]
[377833790,1754571047285,-866.33,0.00019976,2]
[377833792,1754571047294,-2512.87,0.00019976,2]
[377833794,1754571047303,-1565.03,0.00019976,2]
[377833796,1754571047312,-400.0,0.00019976,2]
[377833798,1754571047321,-400.0,0.00019976,2]
[377833800,1754571047332,-1559.74,0.00019976,2]
[377833802,1754571047342,-538.06,0.00019976,2]
[377833804,1754571047351,-400.0,0.00019976,2]
[377833806,1754571047361,-400.0,0.00019976,2]
[377833808,1754571047370,-1629.01,0.00019976,2]
[377833810,1754571047379,-400.0,0.00019976,2]
[377833812,1754571047388,-400.0,0.00019976,2]
[377833814,1754571047398,-400.0,0.00019976,2]
[377833816,1754571047407,-706.66,0.00019976,2]
[377833818,1754571047417,-400.0,0.00019976,2]
[377833820,1754571047427,-400.0,0.00019976,2]